bitfinex/quotes_BTCUSD_20220120
["timestamp","ask_amount","ask_price","bid_price","bid_amount"]
[1642642945728,6.876e-05,41757.0,41756.0,0.33716882]
[1642642946381,6.876e-05,41757.0,41756.0,0.34916882]
[1642642947782,6.876e-05,41757.0,41756.0,0.33716882]
[1642642947982,6.876e-05,41757.0,41756.0,0.05]
[1642642948183,6.876e-05,41757.0,41755.0,0.43410822]
[1642642948382,6.876e-05,41757.0,41756.0,0.013]
[1642642950136,6.876e-05,41757.0,41755.0,0.33410822]
[1642642950333,6.876e-05,41757.0,41756.0,0.01]
[1642642951835,6.876e-05,41757.0,41755.0,0.33410822]
[1642642953037,6.876e-05,41757.0,41755.0,0.05]
[1642642954584,0.00121551,41758.0,41757.0,0.4909588]
[1642642955386,0.42,41759.0,41757.0,0.4909588]
[1642642955787,0.42,41759.0,41757.0,0.6008258]
[1642642956588,0.84,41759.0,41757.0,0.6008258]
[1642642957087,0.84,41759.0,41757.0,0.6068258]
[1642642957936,0.84,41759.0,41757.0,0.6008258]
[1642642959737,0.84,41759.0,41757.0,0.4909588]
[1642642959936,0.84,41759.0,41757.0,0.5409588]
[1642642960441,0.84,41759.0,41757.0,0.5479588]
[1642642960839,0.84,41759.0,41757.0,0.6676918]
[1642642961685,0.84,41759.0,41757.0,0.6606918]
[1642642962285,0.42,41759.0,41757.0,0.7606918]
[1642642962486,0.00121549,41760.0,41758.0,0.5]
[1642642962687,0.9445,41765.0,41763.0,0.40212569]
[1642642962885,1.1829,41774.0,41763.0,0.40212569]
[1642642962886,0.00486122,41766.0,41763.0,0.40212569]
[1642642963088,0.00012033,41764.0,41763.0,0.05]
[1642642963486,0.00012033,41764.0,41763.0,0.48386703]
[1642642963788,0.00012033,41764.0,41763.0,0.64372303]
[1642642964586,0.00012033,41764.0,41763.0,0.65372303]
[1642642965036,0.00012033,41764.0,41763.0,0.91867546]
[1642642965236,0.00012033,41764.0,41763.0,1.79491946]
[1642642965435,0.00012033,41764.0,41763.0,1.47958646]
[1642642965835,0.00012033,41764.0,41763.0,1.51958646]
[1642642966235,0.00012033,41764.0,41763.0,1.46958646]
[1642642968226,0.00012033,41764.0,41763.0,1.45478879]
[1642642968527,0.01780304,41780.0,41778.0,0.00124481]
[1642642968779,0.594,41796.0,41784.0,0.00126372]
[1642642968972,0.26879397,41795.0,41784.0,0.00126372]
[1642642969171,0.26879397,41795.0,41779.0,0.01199]
[1642642969172,0.26879397,41795.0,41785.0,0.0479]
[1642642969370,0.0005157,41794.0,41786.0,0.0479]
[1642642969569,0.0005157,41794.0,41787.0,0.24343979]
[1642642969770,0.3016,41796.0,41787.0,0.24343979]
[1642642969771,0.00049851,41793.0,41788.0,0.167556]
[1642642970071,1.1055802,41798.0,41788.0,0.167556]
[1642642970072,0.00113944,41792.0,41789.0,0.05]
[1642642970283,0.32433968,41792.0,41788.0,0.0479]
[1642642970473,0.00046413,41791.0,41788.0,0.0629]
[1642642970873,0.00044694,41790.0,41788.0,0.0629]
[1642642971071,0.00044694,41790.0,41789.0,0.0021448]
[1642642971270,0.05984,41791.0,41789.0,0.0021448]
[1642642972520,0.05984,41791.0,41789.0,0.0081448]
[1642642973822,0.05984,41791.0,41789.0,0.0021448]
[1642642974223,0.00121505,41792.0,41789.0,0.0021448]
[1642642974423,0.008,41791.0,41789.0,0.0081448]
[1642642974624,0.00846413,41791.0,41789.0,0.0081448]
[1642642974833,0.00044694,41790.0,41789.0,0.0081448]
[1642642975824,0.00044694,41790.0,41789.0,0.0021448]
[1642642976274,0.45044694,41790.0,41789.0,0.0021448]
[1642642976471,0.46544694,41790.0,41789.0,0.0021448]
[1642642977672,0.45044694,41790.0,41789.0,0.0021448]
[1642642978274,0.75332393,41790.0,41789.0,0.0021448]
[1642642978474,0.76732393,41790.0,41789.0,0.0021448]
[1642642978892,0.31732393,41790.0,41789.0,0.0021448]
[1642642979076,0.01444694,41790.0,41789.0,0.0021448]
[1642642979678,0.00044694,41790.0,41789.0,0.0021448]
[1642642979875,0.00015872,41790.0,41789.0,0.0021448]
[1642642980523,0.04315872,41790.0,41789.0,0.0031448]
[1642642981136,0.04315872,41790.0,41789.0,0.00400314]
[1642642981137,1.16809392,41790.0,41789.0,0.00400314]
[1642642981723,1.16809392,41790.0,41789.0,0.00300314]
[1642642981724,1.12509392,41790.0,41789.0,0.00300314]
[1642642981924,1.17299392,41790.0,41789.0,0.00300314]
[1642642982326,1.48724639,41790.0,41789.0,0.00300314]
[1642642982528,1.50424639,41790.0,41789.0,0.00300314]
[1642642983773,1.17299392,41790.0,41789.0,0.00300314]
[1642642984576,1.54944075,41790.0,41789.0,0.00300314]
[1642642985179,0.95,41789.0,41777.0,0.00123958]
[1642642985379,0.95,41789.0,41775.0,0.42]
[1642642985380,0.00123509,41785.0,41775.0,0.42]
[1642642985577,0.107757,41784.0,41775.0,0.42]
[1642642985778,0.11456423,41784.0,41776.0,8.194e-05]
[1642642986177,0.27649015,41778.0,41776.0,8.194e-05]
[1642642986375,0.407759,41777.0,41776.0,8.194e-05]
[1642642986577,0.107759,41777.0,41776.0,8.194e-05]
[1642642988028,0.37677865,41777.0,41776.0,8.194e-05]
[1642642988232,0.107759,41777.0,41776.0,8.194e-05]
[1642642988630,0.112759,41777.0,41776.0,8.194e-05]
[1642642989030,0.107759,41777.0,41776.0,8.194e-05]
[1642642989632,0.0479,41777.0,41776.0,8.194e-05]
[1642642990634,0.0529,41777.0,41776.0,8.194e-05]
[1642642990832,0.112754,41777.0,41776.0,8.194e-05]
[1642642991873,0.107754,41777.0,41776.0,8.194e-05]
[1642642992469,0.45805679,41777.0,41776.0,8.194e-05]
[1642642993069,0.85805679,41777.0,41776.0,8.194e-05]
[1642642993870,0.84405679,41777.0,41776.0,8.194e-05]
[1642642994081,0.44405679,41777.0,41776.0,8.194e-05]
[1642642994471,0.45805679,41777.0,41776.0,8.194e-05]
[1642642994869,0.75805679,41777.0,41776.0,8.194e-05]
[1642642995724,0.74405679,41777.0,41776.0,8.194e-05]
[1642642996123,0.44405679,41777.0,41776.0,8.194e-05]
[1642642996525,0.120754,41777.0,41770.0,0.00107827]
[1642642996725,0.34213363,41776.0,41771.0,0.00016789]
[1642642996926,0.107758,41775.0,41771.0,0.00016789]
[1642642997527,0.10897328,41775.0,41771.0,0.06002389]
[1642642997727,0.10897328,41775.0,41770.0,0.00107832]
[1642642997927,0.659866,41773.0,41772.0,0.0001507]
[1642642998126,0.707766,41773.0,41771.0,0.00016789]
[1642642998534,0.722766,41773.0,41771.0,0.00016789]
[1642642998982,0.722766,41773.0,41770.0,0.00107833]
[1642642999178,0.722766,41773.0,41771.0,0.00016789]
[1642642999578,0.122766,41773.0,41771.0,0.00016789]
[1642642999779,0.107766,41773.0,41771.0,0.00016789]
[1642643000176,0.107766,41773.0,41770.0,0.00107833]
[1642643000380,0.107766,41773.0,41771.0,0.00016789]
[1642643000580,0.115766,41773.0,41771.0,0.00016789]
[1642643001377,0.115766,41773.0,41770.0,0.00107833]
[1642643001576,0.115766,41773.0,41771.0,0.00016789]
[1642643001775,0.107766,41773.0,41771.0,0.00016789]
[1642643002528,0.114766,41773.0,41771.0,0.00016789]
[1642643002725,0.114766,41773.0,41770.0,0.00107833]
[1642643002926,0.114766,41773.0,41771.0,0.00016789]
[1642643003726,0.114766,41773.0,41770.0,0.00107833]
[1642643003925,0.107766,41773.0,41771.0,0.00016789]
[1642643004525,0.117766,41773.0,41771.0,0.00016789]
[1642643004827,0.117766,41773.0,41770.0,0.00107833]
[1642643005229,0.117766,41773.0,41771.0,0.00016789]
[1642643005829,0.107766,41773.0,41771.0,0.00016789]
[1642643006273,0.107766,41773.0,41770.0,0.11093733]
[1642643006475,0.0012153,41774.0,41771.0,0.05403766]
[1642643006678,0.01,41773.0,41771.0,0.05403766]
[1642643006882,0.01,41773.0,41772.0,1.06072017]
[1642643007077,0.01,41773.0,41772.0,1.45414246]
[1642643007275,0.01,41773.0,41772.0,0.74748717]
[1642643007475,0.01,41773.0,41772.0,0.93304786]
[1642643007875,0.00121529,41775.0,41772.0,0.93304786]
[1642643008076,0.00121529,41775.0,41774.0,1.009841]
[1642643008280,0.3031,41784.0,41774.0,1.87781199]
[1642643008578,0.3031,41784.0,41775.0,0.16978113]
[1642643008775,0.59137483,41784.0,41775.0,0.16978113]
[1642643008979,0.28143518,41781.0,41776.0,0.1077146]
[1642643009177,0.28143518,41781.0,41777.0,0.30925579]
[1642643009377,0.28143518,41781.0,41778.0,0.05385911]
[1642643009578,0.28265039,41781.0,41779.0,0.059843]
[1642643010030,0.28265039,41781.0,41779.0,0.109843]
[1642643010430,0.28265039,41781.0,41779.0,0.169686]
[1642643010632,0.29943518,41781.0,41779.0,0.175686]
[1642643010832,0.29943518,41781.0,41779.0,0.056]
[1642643010833,0.35928218,41781.0,41779.0,0.056]
[1642643011032,0.35928218,41781.0,41779.0,0.006]
[1642643011834,0.35928218,41781.0,41777.0,6.475e-05]
[1642643011835,0.34128218,41781.0,41777.0,6.475e-05]
[1642643012032,0.34128218,41781.0,41777.0,0.05991375]
[1642643012232,0.34128218,41781.0,41777.0,0.059849]
[1642643012637,0.36028218,41781.0,41777.0,0.127698]
[1642643012844,0.36028218,41781.0,41777.0,0.067849]
[1642643013231,0.36149738,41781.0,41777.0,0.067849]
[1642643013632,0.36149738,41781.0,41777.0,0.008]
[1642643013874,0.34249738,41781.0,41775.0,0.179543]
[1642643014073,0.34249738,41781.0,41776.0,0.059851]
[1642643014275,0.34128218,41781.0,41776.0,0.059851]
[1642643014472,0.34249738,41781.0,41777.0,6.475e-05]
[1642643014673,0.35649738,41781.0,41777.0,6.475e-05]
[1642643014873,0.35649738,41781.0,41777.0,0.05991375]
[1642643015482,0.35528218,41781.0,41777.0,0.05991375]
[1642643015675,0.35649738,41781.0,41777.0,0.05991375]
[1642643015876,0.34249738,41781.0,41777.0,0.05991375]
[1642643016674,0.36128218,41781.0,41777.0,0.06891375]
[1642643016875,0.36249738,41781.0,41777.0,0.06891375]
[1642643017076,0.30265038,41781.0,41777.0,0.06891375]
[1642643017275,0.30265038,41781.0,41777.0,0.36681759]
[1642643017276,0.0212152,41781.0,41777.0,0.36681759]
[1642643017526,0.0212152,41781.0,41777.0,0.06891375]
[1642643017734,0.02,41781.0,41778.0,0.05385793]
[1642643017928,0.00124826,41787.0,41779.0,0.059843]
[1642643018132,0.00124826,41787.0,41779.0,0.109843]
[1642643018133,0.0012152,41781.0,41779.0,0.109843]
[1642643018628,0.0012152,41781.0,41779.0,0.062843]
[1642643019028,0.29486178,41784.0,41779.0,0.062843]
[1642643019228,0.00121519,41782.0,41780.0,0.11370164]
[1642643019430,0.00121519,41782.0,41780.0,0.17354464]
[1642643019629,0.00121519,41782.0,41781.0,0.05]
[1642643020229,0.29486178,41784.0,41781.0,0.05]
[1642643020430,0.059845,41783.0,41781.0,0.05]
[1642643020634,0.019,41782.0,41781.0,0.053]
[1642643022475,0.059845,41783.0,41781.0,0.05]
[1642643022780,0.022,41782.0,41781.0,0.111845]
[1642643022975,0.022,41782.0,41781.0,0.052]
[1642643023975,0.059845,41783.0,41781.0,0.109846]
[1642643024377,0.059845,41783.0,41781.0,0.104846]
[1642643024574,0.059845,41783.0,41781.0,0.106846]
[1642643024575,0.078845,41783.0,41781.0,0.106846]
[1642643025526,0.019,41783.0,41781.0,0.106846]
[1642643025731,0.019,41783.0,41782.0,0.29591965]
[1642643026027,0.29607694,41784.0,41782.0,0.29591965]
[1642643026226,0.29486178,41784.0,41781.0,0.164683]
[1642643026626,0.31786178,41784.0,41782.0,0.003]
[1642643026827,0.31786178,41784.0,41782.0,0.06272785]
[1642643027327,0.31786178,41784.0,41782.0,0.0568531]
[1642643027729,0.023,41784.0,41783.0,0.29595079]
[1642643027926,0.00121515,41785.0,41783.0,0.35578779]
[1642643028126,0.00121515,41785.0,41783.0,0.51947639]
[1642643028331,0.00121515,41785.0,41784.0,0.29115595]
[1642643028530,0.00121515,41785.0,41784.0,0.89115595]
[1642643028531,0.041,41785.0,41784.0,0.89115595]
[1642643028786,0.041,41785.0,41784.0,1.27792295]
[1642643028787,0.04107277,41785.0,41784.0,1.27792295]
[1642643028986,0.04107277,41785.0,41784.0,1.28582983]
[1642643029985,7.277e-05,41785.0,41784.0,1.28582983]
[1642643030185,7.277e-05,41785.0,41784.0,0.73582983]
[1642643030686,7.277e-05,41785.0,41784.0,0.74782983]
[1642643030888,7.277e-05,41785.0,41784.0,0.73992295]
[1642643031885,7.277e-05,41785.0,41784.0,0.72792295]
[1642643032285,7.277e-05,41785.0,41784.0,0.72913121]
[1642643032533,7.277e-05,41785.0,41784.0,1.14613121]
[1642643033542,7.277e-05,41785.0,41784.0,1.24613121]
[1642643033734,7.277e-05,41785.0,41784.0,1.29613121]
[1642643033935,7.277e-05,41785.0,41784.0,1.27913121]
[1642643034637,7.277e-05,41785.0,41784.0,1.61312121]
[1642643034836,7.277e-05,41785.0,41784.0,1.56312121]
[1642643035637,7.277e-05,41785.0,41784.0,1.26312121]
[1642643035837,7.277e-05,41785.0,41784.0,1.24112121]
[1642643036283,7.277e-05,41785.0,41784.0,1.32302121]
[1642643036680,7.277e-05,41785.0,41784.0,1.34402121]
[1642643036879,7.277e-05,41785.0,41784.0,1.39402121]
[1642643039281,7.277e-05,41785.0,41784.0,0.99402121]
[1642643039483,7.277e-05,41785.0,41784.0,1.49402121]
[1642643039883,7.277e-05,41785.0,41784.0,1.47302121]
[1642643040125,7.277e-05,41785.0,41784.0,0.87302121]
[1642643040325,7.277e-05,41785.0,41784.0,0.468667]
[1642643040527,7.277e-05,41785.0,41784.0,0.968667]
[1642643040742,7.277e-05,41785.0,41784.0,1.28158274]
[1642643040928,7.277e-05,41785.0,41784.0,1.28915138]
[1642643041128,7.277e-05,41785.0,41784.0,0.78158274]
[1642643041526,7.277e-05,41785.0,41784.0,1.13158274]
[1642643041925,7.277e-05,41785.0,41784.0,1.11058274]
[1642643042324,7.277e-05,41785.0,41784.0,0.81058274]
[1642643042725,7.277e-05,41785.0,41784.0,0.83158274]
[1642643043325,7.277e-05,41785.0,41784.0,1.18158274]
[1642643043527,7.277e-05,41785.0,41784.0,1.13158274]
[1642643043785,7.277e-05,41785.0,41784.0,1.29483732]
[1642643043977,0.00121513,41787.0,41786.0,0.16573015]
[1642643044179,0.001,41801.0,41786.0,1.96098042]
[1642643044379,0.00485977,41793.0,41788.0,0.239243]
[1642643044578,0.00485977,41793.0,41789.0,0.86509932]
[1642643044579,0.00012033,41792.0,41789.0,0.86509932]
[1642643044781,0.00012033,41792.0,41791.0,1.186767]
[1642643044980,0.00485977,41793.0,41791.0,1.63566283]
[1642643045179,0.00485977,41793.0,41792.0,0.93716237]
[1642643045382,0.001,41801.0,41792.0,1.32392937]
[1642643045584,0.00485936,41800.0,41794.0,0.119619]
[1642643045881,0.00485936,41800.0,41795.0,0.79796358]
[1642643045882,0.00024066,41799.0,41795.0,0.79796358]
[1642643046079,0.00024066,41799.0,41795.0,1.00777358]
[1642643046286,0.00022347,41798.0,41796.0,0.17343908]
[1642643046481,0.00022347,41798.0,41797.0,1.398757]
[1642643046682,0.001,41801.0,41797.0,0.450053]
[1642643046881,0.00121495,41799.0,41797.0,0.819331]
[1642643047080,0.00145561,41799.0,41798.0,0.05]
[1642643047280,0.00145561,41799.0,41798.0,0.846576]
[1642643047532,0.00145561,41799.0,41798.0,0.546576]
[1642643047732,0.00024066,41799.0,41798.0,0.546576]
[1642643047933,0.00024066,41799.0,41798.0,0.85674273]
[1642643048330,0.00024066,41799.0,41798.0,0.95674273]
[1642643048731,0.00024066,41799.0,41798.0,0.667576]
[1642643049132,0.00024066,41799.0,41798.0,0.98246479]
[1642643049331,0.00024066,41799.0,41798.0,0.667576]
[1642643049832,0.00024066,41799.0,41798.0,0.517576]
[1642643050030,0.00024066,41799.0,41798.0,0.596576]
[1642643050231,0.00024066,41799.0,41798.0,0.97084459]
[1642643050632,0.00024066,41799.0,41798.0,0.92885459]
[1642643050933,0.00024066,41799.0,41798.0,1.14027459]
[1642643051132,0.00024066,41799.0,41798.0,1.09027459]
[1642643051874,0.00024066,41799.0,41798.0,1.07027459]
[1642643053376,0.00024066,41799.0,41798.0,1.09727459]
[1642643053577,0.00024066,41799.0,41798.0,0.99727459]
[1642643053778,0.00024066,41799.0,41798.0,0.684996]
[1642643054182,0.30973171,41808.0,41802.0,0.059815]
[1642643054579,0.00012033,41806.0,41802.0,0.059815]
[1642643054878,0.00010314,41805.0,41802.0,0.071815]
[1642643055326,8.595e-05,41804.0,41802.0,0.071815]
[1642643055525,8.595e-05,41804.0,41802.0,0.131632]
[1642643055726,0.35006876,41803.0,41802.0,0.131632]
[1642643056326,6.876e-05,41803.0,41802.0,0.119632]
[1642643056925,6.876e-05,41803.0,41802.0,0.130632]
[1642643057126,6.876e-05,41803.0,41802.0,0.180632]
[1642643058229,6.876e-05,41803.0,41802.0,0.169632]
[1642643059579,6.876e-05,41803.0,41802.0,0.109817]
[1642643059781,6.876e-05,41803.0,41802.0,0.120817]
[1642643061382,6.876e-05,41803.0,41802.0,0.119817]
[1642643062826,6.876e-05,41803.0,41802.0,0.11650316]
[1642643063026,6.876e-05,41803.0,41802.0,0.109817]
[1642643063628,6.876e-05,41803.0,41802.0,0.119817]
[1642643065228,6.876e-05,41803.0,41802.0,0.01]
[1642643065628,6.876e-05,41803.0,41801.0,0.05]
[1642643065629,6.876e-05,41803.0,41800.0,0.05113508]
[1642643065829,6.876e-05,41803.0,41798.0,0.21142]
[1642643066030,6.876e-05,41803.0,41800.0,0.00113508]
[1642643066274,6.876e-05,41803.0,41800.0,0.06095408]
[1642643066573,0.05988476,41803.0,41802.0,0.011]
[1642643066776,6.876e-05,41803.0,41802.0,0.011]
[1642643067076,0.30006876,41803.0,41802.0,0.011]
[1642643067279,6.876e-05,41803.0,41802.0,0.011]
[1642643067475,6.876e-05,41803.0,41802.0,0.016]
[1642643067678,0.05988576,41803.0,41802.0,0.016]
[1642643068076,0.05988576,41803.0,41801.0,0.109818]
[1642643069881,0.05988576,41803.0,41801.0,0.05]
[1642643070126,0.05988576,41803.0,41800.0,0.0011351]
[1642643070326,0.28621759,41801.0,41800.0,0.0011351]
[1642643070531,0.28621759,41801.0,41798.0,0.21142]
[1642643070731,0.28621759,41801.0,41799.0,0.00113512]
[1642643070929,0.28621759,41801.0,41799.0,0.06095412]
[1642643071130,0.28621759,41801.0,41799.0,0.12077312]
[1642643071728,0.28621759,41801.0,41799.0,0.12777312]
[1642643071928,0.28621759,41801.0,41799.0,0.126638]
[1642643072228,6.876e-05,41803.0,41799.0,0.126638]
[1642643072432,0.059818,41802.0,41801.0,0.059818]
[1642643072629,0.059818,41802.0,41799.0,0.066819]
[1642643073229,0.059818,41802.0,41799.0,0.07310216]
[1642643073430,0.28665524,41801.0,41799.0,0.16964]
[1642643073879,0.28665524,41801.0,41799.0,0.17636784]
[1642643074079,0.28665524,41801.0,41799.0,0.16964]
[1642643074281,0.28665524,41801.0,41799.0,0.17938944]
[1642643074479,0.28665524,41801.0,41799.0,0.17364]
[1642643075285,0.28665524,41801.0,41799.0,0.1791228]
[1642643075683,0.28665524,41801.0,41799.0,0.17504771]
[1642643076482,0.28665524,41801.0,41799.0,0.16956491]
[1642643076682,0.28665524,41801.0,41799.0,0.17741168]
[1642643076884,0.28665524,41801.0,41799.0,0.16956491]
[1642643077084,0.28665524,41801.0,41799.0,0.17504639]
[1642643077384,0.28665524,41801.0,41799.0,0.17624178]
[1642643077629,0.28665524,41801.0,41799.0,0.16956491]
[1642643077825,0.28665524,41801.0,41799.0,0.17713997]
[1642643078024,0.28665524,41801.0,41799.0,0.16956491]
[1642643078324,0.28665524,41801.0,41799.0,0.17541073]
[1642643078524,0.28665524,41801.0,41799.0,0.16956491]
[1642643078726,0.28665524,41801.0,41799.0,0.17606355]
[1642643078923,0.28665524,41801.0,41799.0,0.16956491]
[1642643079123,0.28665524,41801.0,41799.0,0.17626635]
[1642643079325,0.28665524,41801.0,41799.0,0.16956491]
[1642643079522,0.28665524,41801.0,41799.0,0.17567033]
[1642643079724,0.28665524,41801.0,41799.0,0.16956491]
[1642643079924,0.28665524,41801.0,41799.0,0.1746851]
[1642643080129,0.28665524,41801.0,41799.0,0.16956491]
[1642643080325,0.28665524,41801.0,41799.0,0.17663922]
[1642643080525,0.28665524,41801.0,41799.0,0.16956491]
[1642643080726,0.28665524,41801.0,41799.0,0.17732405]
[1642643081976,0.28665524,41801.0,41799.0,0.16956491]
[1642643082277,0.0479,41800.0,41798.0,0.17077518]
[1642643082677,0.0479,41800.0,41798.0,0.16964]
[1642643082874,0.0479,41800.0,41798.0,0.17077518]
[1642643083776,0.0479,41800.0,41798.0,0.16964]
[1642643085331,0.0479,41800.0,41798.0,0.10982]
[1642643087130,0.0479,41800.0,41798.0,0.169642]
[1642643088531,0.34870781,41800.0,41798.0,0.169642]
[1642643088778,0.95966207,41800.0,41798.0,0.169642]
[1642643090486,0.65885426,41800.0,41798.0,0.169642]
[1642643091482,0.65885426,41800.0,41798.0,0.10982]
[1642643093231,0.65885426,41800.0,41798.0,0.169641]
[1642643093830,0.65885426,41800.0,41798.0,0.10982]
[1642643096380,0.65885426,41800.0,41798.0,0.10975055]
[1642643096981,0.61095426,41799.0,41798.0,0.10975055]
[1642643097182,0.61095426,41799.0,41798.0,0.04993055]
[1642643097381,0.61095426,41799.0,41797.0,0.12077622]
[1642643097582,0.67077626,41799.0,41797.0,0.12077622]
[1642643097882,0.059822,41799.0,41797.0,0.12077622]
[1642643098283,0.059822,41799.0,41797.0,0.169641]
[1642643098880,0.67077626,41799.0,41797.0,0.169641]
[1642643099881,0.059822,41799.0,41797.0,0.169641]
[1642643100524,0.39140368,41799.0,41797.0,0.169641]
[1642643102126,0.059822,41799.0,41797.0,0.169641]
[1642643102325,0.67077226,41800.0,41797.0,0.169641]
[1642643102524,0.67077226,41800.0,41798.0,0.059819]
[1642643104080,0.67077226,41800.0,41798.0,0.119637]
[1642643104884,0.61095426,41800.0,41798.0,0.119637]
[1642643106382,0.67077226,41800.0,41798.0,0.119637]
[1642643107534,0.61095426,41800.0,41798.0,0.119637]
[1642643108932,0.059816,41801.0,41798.0,0.1256371]
[1642643109135,0.61102302,41803.0,41799.0,0.17346237]
[1642643109333,0.61102302,41803.0,41798.0,0.0658191]
[1642643109334,0.06079205,41800.0,41798.0,0.0658191]
[1642643109532,0.1215841,41800.0,41798.0,0.0658191]
[1642643109733,0.73253836,41800.0,41798.0,0.0658191]
[1642643111033,0.73253836,41800.0,41798.0,0.1256351]
[1642643114282,0.67174631,41800.0,41798.0,0.1256351]
[1642643114482,0.61095426,41800.0,41798.0,0.1256351]
[1642643114687,0.06079205,41799.0,41798.0,0.1256351]
[1642643114883,0.1215841,41799.0,41798.0,0.0658161]
[1642643116734,0.1215841,41799.0,41798.0,0.36847856]
[1642643116936,0.1215841,41799.0,41798.0,0.0658161]
[1642643117335,0.1215841,41799.0,41798.0,0.059816]
[1642643117734,0.1215841,41799.0,41798.0,1.1221802]
[1642643117934,0.1215841,41799.0,41798.0,1.196583]
[1642643118137,0.1215841,41799.0,41798.0,0.496583]
[1642643118535,0.1215841,41799.0,41798.0,0.796583]
[1642643118781,0.1215841,41799.0,41798.0,0.746583]
[1642643119188,0.12152363,41799.0,41798.0,0.496583]
[1642643119583,0.06079205,41799.0,41798.0,0.496583]
[1642643119981,0.12152363,41799.0,41798.0,0.496583]
[1642643120181,0.12152363,41799.0,41798.0,0.68387945]
[1642643120489,0.12152363,41799.0,41798.0,0.78387945]
[1642643123134,6.876e-05,41803.0,41799.0,0.95]
[1642643123337,6.876e-05,41803.0,41800.0,0.446566]
[1642643123533,6.876e-05,41803.0,41802.0,0.86323009]
[1642643123733,6.876e-05,41803.0,41802.0,1.34999709]
[1642643123933,6.876e-05,41803.0,41802.0,1.45502808]
[1642643124336,6.876e-05,41803.0,41802.0,1.61782808]
[1642643124533,0.00121469,41809.0,41804.0,0.22124776]
[1642643124732,0.37836368,41813.0,41812.0,0.18632737]
[1642643124933,0.001,41815.0,41812.0,0.23632737]
[1642643125332,0.00018909,41814.0,41812.0,0.23632737]
[1642643125735,0.0001719,41813.0,41812.0,0.23632737]
[1642643125934,0.0001719,41813.0,41812.0,0.34994229]
[1642643128284,0.0001719,41813.0,41812.0,0.16361492]
[1642643128883,0.0001719,41813.0,41812.0,0.109798]
[1642643129283,0.0001719,41813.0,41812.0,0.059798]
[1642643136287,0.0001719,41813.0,41812.0,0.06768489]
[1642643136488,0.0001719,41813.0,41812.0,0.0650262]
[1642643136687,0.0001719,41813.0,41812.0,0.059798]
[1642643137391,0.0001719,41813.0,41812.0,0.21743571]
[1642643137832,0.0001719,41813.0,41812.0,0.4505727]
[1642643143299,0.0001719,41813.0,41812.0,0.73416379]
[1642643144705,0.0001719,41813.0,41812.0,0.4505727]
[1642643145341,0.0001719,41813.0,41812.0,0.4505041]
[1642643146738,0.0001719,41813.0,41812.0,0.74894654]
[1642643150394,0.0001719,41813.0,41812.0,0.53157943]
[1642643150605,0.0001719,41813.0,41812.0,0.22993699]
[1642643150793,0.0001719,41813.0,41812.0,0.6251126]
[1642643153042,0.0001719,41813.0,41812.0,1.0118796]
[1642643153544,0.0001719,41813.0,41812.0,0.72649299]
[1642643155142,0.0001719,41813.0,41812.0,1.06437595]
[1642643159788,0.00419872,41815.0,41813.0,0.446552]
[1642643160036,0.00419872,41815.0,41814.0,0.30680507]
[1642643160238,0.00419872,41815.0,41814.0,0.386767]
[1642643160635,0.00298398,41815.0,41814.0,0.386767]
[1642643160837,0.00298398,41815.0,41814.0,0.67441034]
[1642643161837,0.00298398,41815.0,41814.0,0.386767]
[1642643162038,0.00298398,41815.0,41814.0,0.67498416]
[1642643165093,0.00198398,41815.0,41814.0,0.67491643]
[1642643165698,0.00121471,41817.0,41815.0,1.046553]
[1642643165894,0.00121471,41817.0,41816.0,0.36028914]
[1642643166094,0.00121471,41817.0,41816.0,0.41028914]
[1642643166095,0.00128347,41817.0,41816.0,0.41028914]
[1642643166497,0.00128347,41817.0,41816.0,0.79652514]
[1642643166695,6.876e-05,41817.0,41816.0,0.436236]
[1642643167095,6.876e-05,41817.0,41816.0,0.72359815]
[1642643167296,6.876e-05,41817.0,41816.0,0.72689815]
[1642643168571,6.876e-05,41817.0,41816.0,0.439536]
[1642643168971,6.876e-05,41817.0,41816.0,0.0533]
[1642643169164,6.876e-05,41817.0,41816.0,0.0033]
[1642643171592,6.876e-05,41817.0,41816.0,0.29109655]
[1642643171991,6.876e-05,41817.0,41816.0,0.67733255]
[1642643172389,0.00066876,41818.0,41817.0,0.386236]
[1642643172590,0.00066876,41818.0,41817.0,0.34325516]
[1642643172889,0.00066876,41818.0,41817.0,0.10710544]
[1642643174689,0.00066876,41818.0,41817.0,0.39329161]
[1642643175839,0.00066876,41818.0,41817.0,0.77952761]
[1642643178541,0.00066876,41818.0,41817.0,0.49334144]
[1642643178787,0.00066876,41818.0,41817.0,0.10710544]
[1642643181092,0.63561587,41826.0,41818.0,0.95]
[1642643181319,0.63561587,41826.0,41819.0,1.18312911]
[1642643181320,0.00121467,41820.0,41819.0,1.18312911]
[1642643181494,0.00485794,41826.0,41820.0,1.0]
[1642643181495,8.596e-05,41822.0,41820.0,1.0]
[1642643181694,8.596e-05,41822.0,41821.0,1.28745495]
[1642643181892,0.00485794,41826.0,41825.0,0.00127812]
[1642643182090,0.00485794,41826.0,41825.0,0.38751412]
[1642643182291,0.001,41827.0,41825.0,0.21968608]
[1642643182548,0.001,41827.0,41825.0,0.26840796]
[1642643183447,0.001,41827.0,41825.0,0.32818196]
[1642643183647,0.001,41827.0,41826.0,0.386236]
[1642643183947,0.00117191,41827.0,41826.0,0.386236]
[1642643184147,0.00162476,41828.0,41827.0,0.5]
[1642643184148,0.00129667,41828.0,41827.0,0.5]
[1642643184351,0.00129667,41828.0,41827.0,0.68875887]
[1642643184549,0.00129667,41828.0,41827.0,0.73875887]
[1642643184746,0.00067191,41828.0,41827.0,0.73875887]
[1642643185750,0.00121452,41830.0,41828.0,0.05378499]
[1642643185950,0.3032,41832.0,41829.0,0.66901565]
[1642643186150,0.00121452,41830.0,41829.0,0.34253865]
[1642643186392,0.00121452,41830.0,41829.0,0.229277]
[1642643186593,0.00121452,41830.0,41829.0,0.279277]
[1642643186793,0.00121452,41830.0,41829.0,0.229277]
[1642643186996,6.876e-05,41831.0,41829.0,0.28305975]
[1642643187895,6.876e-05,41831.0,41830.0,0.0033]
[1642643189602,0.05984976,41831.0,41830.0,0.0033]
[1642643189797,0.45984976,41831.0,41830.0,0.0033]
[1642643190441,0.48815976,41831.0,41830.0,0.0033]
[1642643190641,0.48815976,41831.0,41830.0,0.4337202]
[1642643190842,0.88815976,41831.0,41830.0,0.4337202]
[1642643191044,0.88815976,41831.0,41830.0,0.4304202]
[1642643191045,0.85984976,41831.0,41830.0,0.4304202]
[1642643191341,0.45984976,41831.0,41830.0,0.4304202]
[1642643191940,0.45984976,41831.0,41830.0,0.4804202]
[1642643194595,0.45984976,41831.0,41830.0,0.4837202]
[1642643195195,0.05984976,41831.0,41830.0,0.4837202]
[1642643197742,0.40984976,41831.0,41830.0,0.4837202]
[1642643198745,0.70984976,41831.0,41830.0,0.4837202]
[1642643199144,0.40484976,41831.0,41830.0,0.4837202]